[Event "13th Palmanova Festival A 2024"]
[Site "Palmanova"]
[Date "2024.12.31"]
[Round "6.1"]
[White "Bettalli, Francesco"]
[Black "Martinovici, Ilia"]
[Result "0-1"]
[ECO "C13"]
[WhiteElo "2359"]
[BlackElo "2473"]
[Annotator "TA"]
[PlyCount "102"]
[EventDate "2024.12.27"]
[EventCountry "ITA"]
[SourceTitle "playchess.com"]
[Source "ChessBase"]
[SourceQuality "1"]
[TimeControl "6000+30"]

{[%evp 14,102,25,8,25,30,27,44,41,0,6,3,70,16,29,0,-12,0,0,-16,-31,-24,0,0,0,-91,-102,-100,-79,-167,-152,-303,-112,-98,-79,-79,-82,-189,-124,-113,-125,-120,-102,-94,-108,-108,-91,-128,-128,-128,-123,-115,-112,-150,-151,-152,-26,-26,-32,-262,-185,-242,-241,-301,-294,-293,-60,-60,-60,-60,-84,-102,-102,-110,-110,-12850,-10531,-29964,-29965,-29964,-29952,-29969,-29970,-29978,-29979,-29980,-29981,-29981,-29982,-29985,-29983]} 1. e4 {[%emt 0:19:18]} e6 {[%emt 0:00:07]} 2. d4 {[%emt 0:00:41]} d5 {[%emt 0:00:04]} 3. Nc3 {[%emt 0:01:19]} Nf6 {[%emt 0:00:23]} 4. Bg5 {[%emt 0:00:17]} dxe4 {[%emt 0:00:09]} 5. Nxe4 {[%emt 0:00:10]} Be7 {[%emt 0:00:06]} 6. Bxf6 {[%emt 0:00:22]} gxf6 {[%emt 0:00:04]} 7. Nf3 {[%emt 0:01:38]} a6 {[%emt 0:01:26]} 8. g3 {[%emt 0:07:04]} b5 {[%emt 0:06:43]} 9. Bg2 {[%emt 0:00:17]} Bb7 {[%emt 0:00:06]} 10. Qe2 {[%emt 0:01:52]} f5 {[%emt 0:04:16]} 11. Nc3 {[%emt 0:00:14]} b4 {[%emt 0:14:02]} 12. Na4 {[%emt 0:02:35]} Nd7 {[%emt 0:02:03]} (12... O-O $11) 13. Rd1 {[%emt 0:04:43]} (13. c4 $1 $14) 13... Bc6 {[%emt 0:18:03] [#] This pair of bishops is nice.} 14. Nc5 $1 {[%emt 0:13:52]} Bxc5 {[%emt 0:07:04]} (14... Nxc5 15. dxc5) 15. dxc5 {[%emt 0:00:01][%cal Of3e5] Ne5! is the strong threat.} Qe7 {[%emt 0:03:22]} 16. Rxd7 {[%emt 0:06:12]} Bxd7 {[%emt 0:02:58]} (16... Qxd7 $2 17. Ne5 Bxg2 (17... Bb5 $2 18. Qh5 $18) 18. Nxd7 Kxd7 19. Rg1 $18) 17. Ne5 {[%emt 0:00:05]} Bb5 {[%emt 0:05:19]} 18. Qe3 $1 {[%emt 0:00:41]} c6 {[%emt 0:11:09]} 19. Qd4 {[%emt 0:20:10]} (19. c4 $11 {remains equal.} bxc3 20. bxc3) 19... O-O $1 $17 {[%emt 0:02:28]} 20. Qxb4 {[%emt 0:05:50][%cal Oc2c4]} a5 {[%emt 0:03:33]} 21. Qd4 {[%emt 0:09:20] [#]} (21. Qa3 $17) 21... f6 $1 $19 {[%emt 0:03:25]} 22. Nxc6 $2 {[%emt 0:01:04]} (22. Nd3 $17 {might work better.}) 22... Bxc6 $2 {[%emt 0:00:44]} (22... Qe8 $19 {is more deadly.} 23. Ne7+ Qxe7 24. Bxa8 Rxa8) 23. Bxc6 $17 {[%emt 0:00:02]} Rac8 {[%emt 0:00:33]} 24. Qd7 {[%emt 0:00:54]} Kf7 {[%emt 0:03:37]} 25. O-O {[%emt 0:05:23]} (25. Qxe7+ $17 {was the only chance.} Kxe7 26. Bb5 Rxc5 27. Bd3) 25... Rfd8 {[%emt 0:03:02]} (25... Qxd7 $19 26. Bxd7 Rxc5) 26. Qxe7+ {[%emt 0:00:24]} Kxe7 {[%emt 0:00:01][%mdl 4096] Endgame KRR-KRB} 27. Bb5 {[%emt 0:00:24]} Rxc5 {[%emt 0:01:01]} 28. Bd3 {[%emt 0:00:03]} Rd4 {[%emt 0:07:27]} 29. f4 {[%emt 0:02:12]} Kd6 {[%emt 0:00:29]} 30. Kf2 {[%emt 0:02:35] [#]} Rxd3 $1 {[%emt 0:05:37]} 31. cxd3 {[%emt 0:00:05] KR-KR. White is a pawn up.} Rc2+ {[%emt 0:00:01]} 32. Ke3 {[%emt 0:01:19]} Rxb2 {[%emt 0:00:02]} 33. h3 {[%emt 0:05:21]} Rxa2 {[%emt 0:00:11] Black is more active.} 34. g4 {[%emt 0:00:09]} Rh2 {[%emt 0:02:18]} (34... a4 $17 35. gxf5 a3 (35... exf5 36. Rb1 $17) 36. fxe6 Kxe6) 35. gxf5 $11 {[%emt 0:00:18]} Rxh3+ {[%emt 0:00:07]} 36. Kd4 $2 {[%emt 0:00:34] [#]} (36. Ke4 $15) 36... e5+ $1 $19 {[%emt 0:04:14]} (36... exf5 37. Ra1 $17) 37. fxe5+ {[%emt 0:00:08]} fxe5+ {[%emt 0:00:01]} 38. Ke4 {[%emt 0:01:21]} Rh4+ {[%emt 0:00:09]} 39. Ke3 {[%emt 0:00:01]} a4 $2 {[%emt 0:02:45]} ({Black should play} 39... Ke7 $19 {White must now prevent ...Kf6.} 40. f6+ Kf7) 40. f6 $15 {[%emt 0:00:55] [#] f7 would kill now.} Rf4 $1 {[%emt 0:00:02]} 41. Rh1 $1 {[%emt 0:00:00]} Rxf6 {[%emt 0:00:00]} 42. Rxh7 {[%emt 0:00:00]} Kc5 {[%emt 0:00:00]} 43. Ra7 {[%emt 0:00:00]} Kb4 {[%emt 0:00:00]} 44. Ke4 $2 {[%emt 0:00:00][%mdl 8192]} (44. Rb7+ $17 Kc3 45. Rc7+ Kb2 46. Rb7+ Kc3) 44... Rd6 $19 {[%emt 0:00:00] ( -> ...a3)} 45. Kxe5 {[%emt 0:00:00]} Rxd3 {[%emt 0:00:00]} 46. Ke4 {[%emt 0:00:00]} Rd1 {[%emt 0:00:00]} 47. Ke3 {[%emt 0:00:00]} a3 {[%emt 0:00:00]} 48. Ke2 {[%emt 0:00:00]} Rd5 {[%emt 0:00:00]} 49. Rb7+ {[%emt 0:00:00]} Rb5 {[%emt 0:00:00]} 50. Ra7 {[%emt 0:00:00]} Kb3 {[%emt 0:00:00]} 51. Kd1 {[%emt 0:00:00]} Kb2 {[%emt 0:00:00]} 0-1

[Event "13th Palmanova Festival A 2024"]
[Site "Palmanova"]
[Date "2024.12.31"]
[Round "6.2"]
[White "Lumachi, Gabriele"]
[Black "Savanovic, Aleksandar"]
[Result "1-0"]
[ECO "D32"]
[WhiteElo "2438"]
[BlackElo "2354"]
[Annotator "TA"]
[PlyCount "99"]
[EventDate "2024.12.27"]
[EventCountry "ITA"]
[SourceTitle "playchess.com"]
[Source "ChessBase"]
[SourceQuality "1"]
[TimeControl "6000+30"]

{[%evp 21,99,30,40,33,38,41,43,43,45,29,42,47,47,52,55,52,47,45,44,39,43,35,45,43,41,37,61,36,58,40,58,53,54,52,71,54,60,71,153,154,402,534,535,535,470,526,518,520,504,501,29986,458,419,421,385,359,735,708,612,518,1877,1877,29974,29975,29975,29974,29974,29974,29986,29974,1841,1047,1008,980,963,955,953,945,829,800]} 1. c4 {[%emt 0:00:02]} e6 {[%emt 0:00:51]} 2. Nf3 {[%emt 0:00:07]} Nf6 {[%emt 0:00:07]} 3. b3 {[%emt 0:00:06]} d5 {[%emt 0:00:49]} 4. e3 {[%emt 0:00:10]} Be7 {[%emt 0:00:05]} 5. Bb2 {[%emt 0:00:05]} O-O {[%emt 0:00:08]} 6. Nc3 {[%emt 0:00:09]} c5 {[%emt 0:01:07]} 7. cxd5 {[%emt 0:00:07]} exd5 {[%emt 0:00:04]} 8. d4 {[%emt 0:00:08]} Nc6 {[%emt 0:01:00]} 9. Be2 {[%emt 0:00:12]} Bg4 {[%emt 0:00:32]} 10. dxc5 {[%emt 0:00:23]} Bxc5 {[%emt 0:00:05]} 11. O-O {[%emt 0:00:13]} a6 {[%emt 0:00:02]} 12. h3 {[%emt 0:00:06]} Be6 {[%emt 0:00:07]} 13. Bd3 {[%emt 0:00:18]} Qe7 {[%emt 0:01:40]} 14. Ne2 {[%emt 0:00:09]} Ba3 {[%emt 0:05:10]} 15. Qc1 {[%emt 0:02:23]} Bxb2 {[%emt 0:00:31]} 16. Qxb2 {[%emt 0:00:09]} Rac8 {[%emt 0:00:02]} 17. Rac1 {[%emt 0:05:39]} Rc7 {[%emt 0:00:32]} 18. Nf4 {[%emt 0:13:42]} Rfc8 {[%emt 0:01:23]} 19. Bb1 {[%emt 0:01:04]} h6 {[%emt 0:11:12]} 20. Rfd1 {[%emt 0:00:28]} a5 {[%emt 0:03:16]} 21. Nh4 {[%emt 0:11:11]} Nb4 {[%emt 0:09:57]} 22. Rxc7 {[%emt 0:14:37]} Qxc7 {[%emt 0:00:44]} 23. a3 {[%emt 0:04:36]} Na6 {[%emt 0:06:42]} 24. Bf5 {[%emt 0:11:52] White has more active pieces.} Qb6 {[%emt 0:06:38]} 25. Nhg6 {[%emt 0:16:20]} Re8 {[%emt 0:01:12] Wards off Ne7+} 26. Bxe6 {[%emt 0:00:24]} fxe6 {[%emt 0:00:06]} 27. Rc1 {[%emt 0:00:49][%cal Bd1c1,Bc1c7,Bc7g7][%mdl 32]} Nb8 {[%emt 0:01:45]} 28. b4 {[%emt 0:03:19]} Nbd7 {[%emt 0:06:21]} 29. Ne5 {[%emt 0:02:32]} Nxe5 {[%emt 0:07:17]} ({Better is} 29... axb4 30. Nxd7 (30. axb4 Nxe5 31. Qxe5 Qxb4 $11) 30... Nxd7) 30. Qxe5 $16 {[%emt 0:00:05]} axb4 $2 {[%emt 0:00:05] [#]} (30... Nd7 $16 {was called for.} 31. Qc7 Qb5) 31. Rc7 $1 $18 {[%emt 0:16:39][%cal Oc7g7] Rxg7+! is the strong threat.} (31. axb4 Qxb4 $11) 31... bxa3 {[%emt 0:00:08] [#] and ...Qb1+ should not be overlooked} 32. Rxg7+ $3 {[%emt 0:00:06][%mdl 512]} Kxg7 {[%emt 0:00:03]} 33. Nh5+ {[%emt 0:00:05]} Kh7 {[%emt 0:00:07]} 34. Nxf6+ {[%emt 0:00:05]} (34. Qxf6 $2 Qb1+ 35. Kh2 Qg6 $19) 34... Kg6 {[%emt 0:00:07]} 35. Nxe8 {[%emt 0:00:05][%mdl 4096] Endgame} Qb1+ {[%emt 0:04:09]} 36. Kh2 {[%emt 0:00:05]} Kf7 {[%emt 0:00:17][%cal Oa3a2]} 37. Nd6+ {[%emt 0:07:19]} Ke7 {[%emt 0:00:14]} 38. e4 {[%emt 0:00:09]} Qb2 $2 {[%emt 0:17:00]} (38... Kd7 39. exd5 exd5 40. Qxd5 a2) 39. Nf5+ {[%emt 0:00:02]} Kf7 {[%emt 0:00:07]} 40. Nd4 {[%emt 0:03:09]} (40. Nxh6+ Kg6 41. Qxe6+ Qf6 $16) 40... dxe4 {[%emt 0:01:11]} (40... Qb6 $142 41. exd5 exd5 42. Qxd5+ Kf8) 41. Qxe6+ {[%emt 0:00:00]} Kf8 {[%emt 0:00:00]} 42. Qxh6+ {[%emt 0:00:00]} Kg8 {[%emt 0:00:00]} 43. Qg6+ {[%emt 0:00:00]} Kf8 {[%emt 0:00:00]} 44. Qf5+ {[%emt 0:00:00]} Kg8 {[%emt 0:00:00]} 45. Qe6+ {[%emt 0:00:00]} Kf8 {[%emt 0:00:00]} 46. Nf5 {[%emt 0:00:00] Intending Nd6 and mate.} a2 {[%emt 0:00:00]} 47. Qe7+ {[%emt 0:00:00]} (47. Qxe4 a1=Q 48. Qe7+ Kg8 49. Qe8+ Kh7 50. Qf7+ Kh8 $11) 47... Kg8 {[%emt 0:00:00]} 48. Qe8+ {[%emt 0:00:00]} (48. Qxe4 a1=Q 49. Qe6+ Kh7 50. Qf7+ Kh8 $11) 48... Kh7 {[%emt 0:00:00]} 49. Qf7+ {[%emt 0:00:00]} ({Not} 49. Qxe4 a1=Q 50. Nd6+ Kh8 (50... Kh6 51. Qh4+ Kg6 52. f4 $11) 51. Qe8+ Kh7 52. Qh5+ Kg7 53. Qf7+ Kh8 54. Qh5+ Kg7 55. Qf7+ Kh8 56. Qh5+ Kg7 $11) 49... Kh8 {[%emt 0:00:00]} 50. Nh4 {[%emt 0:00:00]} 1-0

[Event "13th Palmanova Festival A 2024"]
[Site "Palmanova"]
[Date "2024.12.31"]
[Round "6.3"]
[White "Di Benedetto, Edoardo"]
[Black "Javornik, Nik"]
[Result "1-0"]
[ECO "A58"]
[WhiteElo "2411"]
[BlackElo "2300"]
[Annotator "TA"]
[PlyCount "121"]
[EventDate "2024.12.27"]
[EventCountry "ITA"]
[SourceTitle "playchess.com"]
[Source "ChessBase"]
[SourceQuality "1"]
[TimeControl "6000+30"]

{[%evp 22,121,57,41,50,37,38,51,36,50,49,51,47,41,41,35,27,14,23,27,29,15,18,14,12,0,11,0,41,31,45,0,12,0,0,0,13,13,12,10,12,0,38,35,23,22,22,37,34,15,66,8,8,0,0,0,8,0,0,0,66,66,139,139,139,139,139,139,139,139,139,139,139,139,139,139,140,140,140,140,355,355,355,405,405,405,2831,2317,405,405,29980,29981,29981,29982,29982,29983,29983,29984,29984,29985,29985,29986]} 1. d4 {[%emt 0:06:20]} Nf6 {[%emt 0:00:05]} 2. c4 {[%emt 0:00:04]} g6 {[%emt 0:00:13]} 3. g3 {[%emt 0:00:04]} Bg7 {[%emt 0:00:07]} 4. Bg2 {[%emt 0:00:04]} c5 {[%emt 0:00:14]} 5. d5 {[%emt 0:00:09]} d6 {[%emt 0:01:24]} 6. Nc3 {[%emt 0:00:04]} O-O {[%emt 0:01:01]} 7. Nf3 {[%emt 0:02:14]} a6 {[%emt 0:04:49]} 8. O-O {[%emt 0:03:18]} b5 {[%emt 0:01:23]} 9. cxb5 {[%emt 0:00:06]} axb5 {[%emt 0:00:14]} 10. Nxb5 {[%emt 0:00:05]} Ba6 {[%emt 0:00:36]} 11. Nc3 {[%emt 0:00:44]} Nbd7 {[%emt 0:00:56]} 12. Qc2 {[%emt 0:01:39]} Ng4 {[%emt 0:08:25]} 13. h3 {[%emt 0:02:53]} Nge5 {[%emt 0:00:06]} 14. Nxe5 {[%emt 0:00:06]} Nxe5 {[%emt 0:00:18] White is slightly better.} 15. b3 {[%emt 0:02:56]} Qa5 {[%emt 0:08:29][%cal Oe5c4]} 16. Bd2 {[%emt 0:03:46]} Rfb8 {[%emt 0:15:03]} 17. Rab1 {[%emt 0:04:14]} Qa3 {[%emt 0:09:07]} 18. Kh2 {[%emt 0:11:20]} c4 {[%emt 0:03:36]} 19. Qc1 {[%emt 0:13:51]} Qa5 {[%emt 0:05:04]} (19... Qxc1 {simplifies} 20. Rfxc1 cxb3 21. axb3 Nd7) 20. Na4 {[%emt 0:13:59]} Qb5 {[%emt 0:00:34][%cal Rc4b3] aiming for ...cxb3.} 21. f4 {[%emt 0:04:07]} Nd7 {[%emt 0:01:03]} 22. Bc3 {[%emt 0:05:34]} cxb3 {[%emt 0:04:15]} 23. Bxg7 {[%emt 0:01:57] Black must now prevent Nc3.} Kxg7 {[%emt 0:00:25]} 24. axb3 {[%emt 0:00:28]} Rc8 {[%emt 0:09:47]} 25. Qb2+ {[%emt 0:00:39]} Kg8 {[%emt 0:00:04]} 26. Bf3 {[%emt 0:05:58]} Qb4 {[%emt 0:03:38]} 27. Rfc1 {[%emt 0:01:25]} Rab8 {[%emt 0:03:13]} 28. Rc3 {[%emt 0:08:13]} Bb5 {[%emt 0:14:27]} 29. Rbc1 {[%emt 0:06:39]} Rxc3 {[%emt 0:02:54]} 30. Qxc3 {[%emt 0:00:31]} Bxa4 {[%emt 0:00:07]} 31. bxa4 {[%emt 0:00:24][%cal Bb3a4,Ba4a5][%mdl 32]} Nc5 {[%emt 0:03:07]} 32. a5 {[%emt 0:00:58]} Qxc3 $1 {[%emt 0:01:38]} 33. Rxc3 $14 {[%emt 0:00:02][%mdl 4096] Endgame. KRB-KRN} Ra8 $1 {[%emt 0:00:08]} 34. Ra3 {[%emt 0:00:17]} Ra6 $1 {[%emt 0:00:07]} 35. Bg4 {[%emt 0:09:14]} (35. e4 $5 Nb7 $8 36. Rc3 $11) 35... Nb7 {[%emt 0:00:48]} (35... h5 $11 36. Bf3 Nb7) 36. Bc8 {[%emt 0:00:31]} (36. Re3 $14 Nc5 37. Rxe7) 36... Rxa5 $11 {[%emt 0:00:05]} 37. Re3 {[%emt 0:00:05]} Nc5 {[%emt 0:04:58]} 38. Rxe7 {[%emt 0:00:13]} h5 {[%emt 0:06:10] Wards off Bg4} 39. h4 {[%emt 0:00:06]} Kf8 {[%emt 0:00:37]} 40. Re3 {[%emt 0:00:06]} Ra8 {[%emt 0:00:32]} ({Better is} 40... f5 $11) 41. Bh3 $14 {[%emt 0:00:05]} Re8 {[%emt 0:00:05]} ({Black should play} 41... Ra2 $14) 42. Rxe8+ $16 {[%emt 0:00:08]} Kxe8 {[%emt 0:00:00] KB-KN} 43. Bg2 {[%emt 0:04:56]} f5 {[%emt 0:00:00]} 44. Kg1 {[%emt 0:00:00]} Ke7 {[%emt 0:00:00]} 45. Kf2 {[%emt 0:00:00]} Kf6 {[%emt 0:00:00]} 46. Ke3 {[%emt 0:00:00]} Ke7 {[%emt 0:00:00]} 47. Kd4 {[%emt 0:00:00]} Nb3+ {[%emt 0:00:00]} 48. Kc4 {[%emt 0:00:00]} Nc5 {[%emt 0:00:00]} 49. e4 {[%emt 0:00:00]} fxe4 {[%emt 0:00:00]} 50. Kd4 {[%emt 0:00:00]} Kf7 $2 {[%emt 0:00:00] Black cannot hold the game after this.} (50... e3 $16 51. Kxe3 Kf7) 51. Bxe4 $18 {[%emt 0:00:00]} Kf6 {[%emt 0:00:00]} 52. Bc2 {[%emt 0:00:00]} Nd7 {[%emt 0:00:00] [#]} 53. Kc3 $1 {[%emt 0:00:00] Kb4 would now be deadly.} Kf7 {[%emt 0:00:00]} (53... Kg7 $142 54. Bd3 Nf6) 54. Kb4 {[%emt 0:00:00]} Nf6 {[%emt 0:00:00]} 55. Kb5 {[%emt 0:00:00]} Nxd5 {[%emt 0:00:00]} (55... Kg7 $18 56. Kc6 Kf7 57. Kxd6 Nh7) 56. Bb3 {[%emt 0:00:00] White mates.} Ke6 {[%emt 0:00:00]} 57. Kc6 {[%emt 0:00:00]} Kf5 {[%emt 0:00:00]} 58. Kxd5 {[%emt 0:00:00]} Kg4 {[%emt 0:00:00]} 59. Kxd6 {[%emt 0:00:00]} Kxg3 {[%emt 0:00:00] [#]} 60. Ke5 $1 {[%emt 0:00:00]} Kxh4 {[%emt 0:00:00]} 61. Bc2 {[%emt 0:00:00] Weighted Error Value: White=0.06 (flawless) /Black=0.23 (precise) .  Loses game:     	---       	Black=1      Mistake:       	White=1     	Black=4      Inaccurate:     	White=1     	Black=2      OK:         	White=18    	Black=15     Best:        	White=5     	Black=6      Strong:       	White=1     	Black=3} 1-0

[Event "13th Palmanova Festival A 2024"]
[Site "Palmanova"]
[Date "2024.12.31"]
[Round "6.4"]
[White "Dobrovoljc, Vid"]
[Black "Casadio, Niccolo`"]
[Result "1-0"]
[ECO "B90"]
[WhiteElo "2365"]
[BlackElo "2275"]
[Annotator "TA"]
[PlyCount "119"]
[EventDate "2024.12.27"]
[EventCountry "ITA"]
[SourceTitle "playchess.com"]
[Source "ChessBase"]
[SourceQuality "1"]
[TimeControl "6000+30"]

{[%evp 17,119,22,20,8,29,35,30,20,59,46,42,37,68,33,52,45,64,39,55,62,62,39,74,76,72,72,78,39,44,30,85,61,82,76,84,82,80,104,283,269,262,216,302,301,341,350,661,673,666,639,622,616,632,624,4068,2837,2394,2345,4802,4802,4802,4802,4132,679,678,676,1072,631,1220,507,680,680,672,672,672,672,658,531,531,531,907,531,1333,1277,1406,1624,1565,1438,1491,987,4614,4614,4614,4614,4614,4614,6231,4610,29990,29991,29993,29994,29995,29994]} 1. e4 {[%emt 0:01:07]} c5 {[%emt 0:03:53]} 2. Nf3 {[%emt 0:00:32]} d6 {[%emt 0:00:08]} 3. d4 {[%emt 0:00:34]} cxd4 {[%emt 0:00:07]} 4. Nxd4 {[%emt 0:00:03]} Nf6 {[%emt 0:00:06]} 5. Nc3 {[%emt 0:00:05]} a6 {[%emt 0:00:05]} 6. Be3 {[%emt 0:01:38]} e5 {[%emt 0:00:10]} 7. Nf3 {[%emt 0:00:05]} Qc7 {[%emt 0:04:14]} 8. a4 {[%emt 0:00:49]} Be6 {[%emt 0:00:54]} 9. Be2 {[%emt 0:04:15] B90: Sicilian Najdorf: Unusual White 6th moves, 6 Be3 Ng4 and 6 Be3 e5.} Be7 {[%emt 0:00:35]} 10. O-O {[%emt 0:11:11]} Nbd7 {[%emt 0:02:36]} 11. Ng5 {[%emt 0:19:17]} Bc4 {[%emt 0:11:43]} 12. a5 {[%emt 0:01:02]} Rc8 {[%emt 0:08:59]} 13. Bxc4 $146 {[%emt 0:05:54]} ({Predecessor:} 13. Ra4 Bxe2 14. Qxe2 O-O 15. Rd1 Nb8 16. Nf3 Qd7 17. Nxe5 Qe8 18. Nc4 Nxe4 19. Nd5 Qxa4 20. Nxe7+ {1-0 Erenburg,S (2563)-Medrano,M (2073) American Continental 14th 2018 (1)}) 13... Qxc4 {[%emt 0:00:06]} 14. Ra4 {[%emt 0:00:04]} Qc7 {[%emt 0:00:45]} 15. Qd3 {[%emt 0:00:31]} O-O {[%emt 0:07:06]} 16. Nf3 {[%emt 0:02:32]} Rfd8 {[%emt 0:01:30]} 17. Nd2 {[%emt 0:06:06]} Nc5 {[%emt 0:01:26]} 18. Bxc5 {[%emt 0:00:37]} dxc5 {[%emt 0:00:06]} 19. Qe2 {[%emt 0:00:03]} Rd4 {[%emt 0:00:19]} 20. Nc4 {[%emt 0:00:06]} Rcd8 {[%emt 0:03:56]} 21. Raa1 {[%emt 0:03:46]} Bd6 {[%emt 0:01:43]} 22. Nb6 {[%emt 0:11:02]} Qc6 {[%emt 0:00:20]} 23. Rfe1 {[%emt 0:03:29]} Bf8 {[%emt 0:02:22]} (23... c4 $11) 24. Ncd5 {[%emt 0:04:17]} Kh8 {[%emt 0:03:43]} 25. Nxf6 {[%emt 0:02:28]} (25. f3 {simplifies} Qb5 26. Ne3 Qxe2 27. Rxe2 Ng8 28. c3) 25... Rd2 {[%emt 0:01:58] [#]} 26. Qe3 $1 {[%emt 0:00:17]} Qxf6 {[%emt 0:00:43]} 27. Nd5 {[%emt 0:01:32]} R8xd5 $2 {[%emt 0:04:18]} (27... Qh6 $16 {might work better.}) 28. exd5 $18 {[%emt 0:00:09]} Rxc2 {[%emt 0:00:03]} 29. Ra3 {[%emt 0:09:45]} (29. Qxe5 $2 Qxf2+ 30. Kh1 Qxg2#) 29... Rxb2 {[%emt 0:19:04]} 30. Rb3 $1 {[%emt 0:00:17]} (30. Qxe5 $2 Qxf2+ 31. Kh1 Qxg2#) 30... Ra2 {[%emt 0:00:16]} 31. Rxb7 {[%emt 0:05:25]} (31. Qxe5 $2 Qxf2+ 32. Kh1 Qxg2#) 31... Rxa5 $2 {[%emt 0:01:31]} (31... Bd6 32. Qf3 (32. Ra7 g6 $18) 32... c4 33. Rxf7 Qxf3 34. gxf3 (34. Rxf3 Rxa5 35. Rc3 Rxd5 $18) 34... h6) 32. Rb8 $18 {[%emt 0:00:28]} (32. Qxe5 $2 Qxe5 33. Rbb1 Qxd5 $19) 32... Kg8 {[%emt 0:00:05]} 33. f4 {[%emt 0:00:51]} (33. Qxe5 $2 {perishes.} Qxe5 34. Rbb1 Qxd5 $19) 33... Rb5 {[%emt 0:04:40]} 34. fxe5 {[%emt 0:01:32]} Qh4 {[%emt 0:00:38]} 35. Ra8 {[%emt 0:05:42]} Qe7 {[%emt 0:04:13]} 36. e6 {[%emt 0:05:23]} Rb6 {[%emt 0:00:25]} 37. exf7+ {[%emt 0:00:10]} Qxf7 {[%emt 0:00:07]} 38. Rf1 {[%emt 0:00:09]} Rf6 {[%emt 0:00:05]} 39. Rxf6 {[%emt 0:00:30]} gxf6 {[%emt 0:00:07]} 40. Qxc5 {[%emt 0:00:27]} (40. Qg3+ $142 Qg6 41. Qxg6+ (41. Rxa6 Kf7 $18) (41. Qb8 Qh6 $18) 41... hxg6 42. d6 (42. Rxa6 Kf7 $18)) 40... Kg7 $18 {[%emt 0:00:02]} 41. Qa7 {[%emt 0:00:00]} Be7 {[%emt 0:00:00]} 42. Rc8 {[%emt 0:00:00]} (42. Qxa6 Qxd5 43. Qa1 Qf5 $18) 42... Kg6 {[%emt 0:00:00]} 43. Rc1 {[%emt 0:00:00]} (43. Qxa6 Qxd5 44. Rc1 Qd4+ 45. Kh1 Bd6 $18) (43. Rc7 $142) 43... Bb4 {[%emt 0:00:00]} 44. Qxf7+ {[%emt 0:00:00]} ({Less strong is} 44. Qxa6 Qxd5 45. Qe2 Bd6 46. Qg4+ Qg5 47. Qe4+ Kg7 $18) 44... Kxf7 {[%emt 0:00:00]} 45. Kf2 {[%emt 0:00:00]} a5 {[%emt 0:00:00]} 46. Ke3 {[%emt 0:00:00]} Bd6 {[%emt 0:00:00]} 47. Ra1 {[%emt 0:00:00]} Bb4 {[%emt 0:00:00]} 48. Ke4 {[%emt 0:00:00]} Ke7 {[%emt 0:00:00]} 49. h3 {[%emt 0:00:00]} Kd6 {[%emt 0:00:00]} 50. g4 {[%emt 0:00:00]} Kc5 {[%emt 0:00:00]} 51. Rd1 {[%emt 0:00:00]} Kd6 {[%emt 0:00:00]} 52. Rc1 {[%emt 0:00:00]} Bc5 {[%emt 0:00:00]} 53. Rc4 {[%emt 0:00:00]} h6 {[%emt 0:00:00]} 54. h4 {[%emt 0:00:00]} Bf2 {[%emt 0:00:00]} 55. Rc6+ {[%emt 0:00:00]} Ke7 {[%emt 0:00:00]} 56. h5 {[%emt 0:00:00]} Bg3 {[%emt 0:00:00]} 57. Kf5 {[%emt 0:00:08]} Be5 {[%emt 0:00:00]} 58. g5 {[%emt 0:02:51]} hxg5 {[%emt 0:00:00]} 59. h6 {[%emt 0:00:03]} Kf7 {[%emt 0:00:00]} 60. d6 {[%emt 0:00:05]} 1-0